Cogmind - Beta 11.2 @@@ ROGUE MODE // 2023.01.04 @ 13:00:08 // Winter2022/Polymind Player: OJ Result: Destroyed by C-17 Slicer with Blade Saw Performance ------------- Evolutions (2) 1000 Regions Visited (10) 2000 Robots Destroyed (30) 150 Value Destroyed (886) 886 Prototype IDs (2) 40 Alien Tech Used (0) 0 Bonus (5146) 5146 TOTAL SCORE: 8862 Bonus ------- Polymind Skill 4662 Follower Combat Kills 98 Entered Garrisons 400 Friendly Fire -14 Cogmind --------- Core Integrity 0/550 Matter 0/0 Energy 49/50 System Corruption 0% Temperature Cool (0) Movement Core (50) Location -8/Garrison Parts ------- > --- POWER (1) -------- (None) > --- PROPULSION (2) --- (None) > --- UTILITY (1) ------ Improved Heat Sink > --- WEAPON (1) ------- (None) > --- INVENTORY (1) ---- (None) Peak State ------------ > --- POWER ------------ Fission Core > --- PROPULSION ------- Flexi-carbon Leg Flexi-carbon Leg > --- UTILITY ---------- Targeting Computer Armor Integrity Analyzer Phase Shifter > --- WEAPON ----------- Bore Cannon > --- INVENTORY -------- (None) [Rating: 30] Favorites ----------- Power Light Nuclear Core Engine Light Angular Momentum Engine Power Core Light Nuclear Core Propulsion Aluminum Leg Leg Aluminum Leg Wheel Wheel Utility Improved Heat Sink Device Improved Heat Sink Storage Medium Matter Pod Processor Targeting Computer Weapon Particle Gun Energy Gun Particle Gun Ballistic Cannon Bore Cannon Build | -11 -10 -10 -9 -9 -9 -8 -8 -8 -8 -8 ------- Run | Scr Mat Min Mat Min Exi Min Mat Gar Mat Gar Slots Evolved . | . . . . . . . . . . . Power . | . . . . . . . . . . . Propulsion . | . . . . . . . . . . . Utility . | . . . . . . . . . . . Weapon . | . . . . . . . . . . . Parts Attached . | . . . . . . . . . . . Power . | . . . . . . . . . . . Engine . | . . . . . . . . . . . Core . | . . . . . . . . . . . Reactor . | . . . . . . . . . . . Propulsion . | . . . . . . . . . . . Treads . | . . . . . . . . . . . Leg . | . . . . . . . . . . . Wheel . | . . . . . . . . . . . Hover . | . . . . . . . . . . . Flight . | . . . . . . . . . . . Utility . | . . . . . . . . . . . Device . | . . . . . . . . . . . Storage . | . . . . . . . . . . . Processor . | . . . . . . . . . . . Hackware . | . . . . . . . . . . . Protection . | . . . . . . . . . . . Artifact . | . . . . . . . . . . . Weapon . | . . . . . . . . . . . Energy Gun . | . . . . . . . . . . . Energy Cannon . | . . . . . . . . . . . Ballistic Gun . | . . . . . . . . . . . Ballistic Cannon . | . . . . . . . . . . . Launcher . | . . . . . . . . . . . Special Weapon . | . . . . . . . . . . . Impact Weapon . | . . . . . . . . . . . Slashing Weapon . | . . . . . . . . . . . Piercing Weapon . | . . . . . . . . . . . Special Melee Weapon . | . . . . . . . . . . . Unidentified Prototypes . | . . . . . . . . . . . Parts Lost 16 | . . 1 2 1 . . . . 8 4 Power 4 | . . . 1 . . . . . 2 1 Propulsion 7 | . . . 1 . . . . . 4 2 Utility 1 | . . 1 . . . . . . . . Weapon 4 | . . . . 1 . . . . 2 1 Highest Loss Streak 7 | . . 1 2 1 . . . . 7 4 To Critical Strikes . | . . . . . . . . . . . Average Slot Usage (%) 92 | . 93 86 77 95 100 100 100 100 90 85 Engine 4 | . 6 . . . . 11 20 20 10 . Core 12 | . 13 14 9 18 20 8 . . 7 16 Leg 32 | . 27 28 24 37 40 40 40 40 32 36 Wheel 1 | . 12 . . . . . . . . . Device 12 | . 13 1 . 18 20 20 20 20 20 20 Processor 9 | . . 27 28 2 . . . . . . Energy Gun 11 | . 13 . . 18 20 20 20 20 20 11 Ballistic Cannon 4 | . . 13 14 . . . . . . . Naked Turns 43 | . 36 1 . 2 . . . . 4 . Heaviest Build 20 | . 9 20 19 9 9 14 14 14 14 9 Greatest Support 40 | 3 20 40 40 20 20 30 30 30 30 20 Greatest Overweight (x) 2 | . . . . . . . . . 2 . Average Overweight (x) . | . . . . . . . . . . . Largest Inventory Capacity 1 | . 1 1 1 1 1 1 1 1 1 1 Average Capacity . | . . . 1 . 1 1 1 1 . 1 Most Carried . | . . . . . . . . . . . Average Carried . | . . . . . . . . . . . Final Capacity 1 | . 1 1 1 1 1 1 1 1 1 1 Final Carried . | . . . . . . . . . . . Class Distribution -------------------- 60% | Grunt 34% | Hunter 3% | Worker Dominant Class ---------------- Grunt | -10/Materials Hunter | -10/Mines Hunter | -9/Materials Grunt | -9/Mines Grunt | -9/Exiles Grunt | -8/Mines Grunt | -8/Materials Grunt | -8/Garrison Grunt | -8/Materials Grunt | -8/Garrison Resources | -11 -10 -10 -9 -9 -9 -8 -8 -8 -8 -8 ----------- Run | Scr Mat Min Mat Min Exi Min Mat Gar Mat Gar Matter Collected 238 | . . 220 18 . . . . . . . Remotely . | . . . . . . . . . . . Salvage Created 804 | . 183 118 69 12 . 70 . . 275 77 Parts 53 | . 15 2 6 4 . 4 . . 19 3 Haulers Intercepted . | . . . . . . . . . . . Recyclers Shooed 1 | . . . . . . . . . 1 . Parts Field Recycled . | . . . . . . . . . . . Retrieved Matter . | . . . . . . . . . . . Parts Self-Destructed . | . . . . . . . . . . . Prevented . | . . . . . . . . . . . Kills | -11 -10 -10 -9 -9 -9 -8 -8 -8 -8 -8 ------- Run | Scr Mat Min Mat Min Exi Min Mat Gar Mat Gar Combat Hostiles Destroyed 39 | . 10 13 3 2 . 2 . . 8 1 Guns 22 | . 10 . . 2 . 1 . . 8 1 Cannons 16 | . . 13 3 . . . . . . . Classes Destroyed 5 | . 2 1 . . . . . . 2 . Worker 1 | . . . . . . . . . 1 . Swarmer 11 | . 3 2 2 1 . 1 . . 2 . Grunt 16 | . 7 1 1 1 . 1 . . 5 . Sentry 2 | . . . . . . . . . 1 1 Assembled 10 | . . 10 . . . . . . . . Best Kill Streak 7 | . 3 7 3 1 . 1 . . 3 1 Combat Bots Only 7 | . 3 7 3 1 . 1 . . 3 1 Max Kills in Single Turn 1 | . 1 1 1 1 . 1 . . 1 1 Gunslinging . | . . . . . . . . . . . Exploded . | . . . . . . . . . . . Melee . | . . . . . . . . . . . Uniques/NPCs Destroyed . | . . . . . . . . . . . Combat | -11 -10 -10 -9 -9 -9 -8 -8 -8 -8 -8 -------- Run | Scr Mat Min Mat Min Exi Min Mat Gar Mat Gar Damage Taken 3008 | . 207 504 159 176 . 168 . . 1383 411 Core 919 | . 101 88 56 67 . 46 . . 402 159 Absorbed by Shields . | . . . . . . . . . . . Core Remaining (%) 60 | 100 . 24 . . . 57 . . . . Volleys Fired 179 | . 34 32 21 13 . 11 . . 60 8 Largest 1 | . 1 1 1 1 . 1 . . 1 1 Hottest 69 | . 65 57 57 65 . 69 . . 69 65 Shots Fired 178 | . 34 32 20 13 . 11 . . 60 8 Gun 123 | . 34 . . 10 . 11 . . 60 8 Cannon 55 | . . 32 20 3 . . . . . . Launcher . | . . . . . . . . . . . Special . | . . . . . . . . . . . Kinetic 55 | . . 32 20 3 . . . . . . Thermal 123 | . 34 . . 10 . 11 . . 60 8 Explosive . | . . . . . . . . . . . Electromagnetic . | . . . . . . . . . . . Robot Hit Streak 11 | . 11 4 6 4 . 6 . . 9 4 Robot Miss Streak 6 | . 3 6 4 1 . 2 . . 3 1 Penetration Max . | . . . . . . . . . . . Secondary Targets . | . . . . . . . . . . . Shots Hit Robots 113 | . 24 15 11 8 . 9 . . 40 6 Core Hits 54 | . 11 13 3 4 . 3 . . 18 2 Critical Kills 9 | . . 8 1 . . . . . . . Critical Parts Destroyed 9 | . . 3 4 2 . . . . . . Critical Strikes 23 | . 1 11 5 2 . 1 . . 3 . Burn 5 | . 1 . . . . 1 . . 3 . Destroy 18 | . . 11 5 2 . . . . . . Melee Attacks . | . . . . . . . . . . . Impact . | . . . . . . . . . . . Slashing . | . . . . . . . . . . . Piercing . | . . . . . . . . . . . Sneak Attacks . | . . . . . . . . . . . Combat Hostiles . | . . . . . . . . . . . Follow-up Attacks . | . . . . . . . . . . . Damage Inflicted 2205 | . 384 376 214 160 . 201 . . 773 97 Guns 1524 | . 384 . . 102 . 176 . . 772 90 Cannons 631 | . . 376 200 55 . . . . . . Explosions . | . . . . . . . . . . . Melee . | . . . . . . . . . . . Ramming 50 | . . . 14 3 . 25 . . 1 7 Kinetic 631 | . . 376 200 55 . . . . . . Thermal 1524 | . 384 . . 102 . 176 . . 772 90 Explosive . | . . . . . . . . . . . Electromagnetic . | . . . . . . . . . . . Impact . | . . . . . . . . . . . Slashing . | . . . . . . . . . . . Piercing . | . . . . . . . . . . . Highest Corruption 2 | . . . 2 2 2 2 . . . . Average Corruption 2 | . . . 2 2 2 2 . . . . Corruption Purged . | . . . . . . . . . . . Corruption Blocked . | . . . . . . . . . . . Effects 18 | . . . 5 3 4 6 . . . . Message Errors 5 | . . . 2 2 1 . . . . . Matter Fused 1 | . . . . 1 . . . . . . Heat Flow Errors 2 | . . . . . 1 1 . . . . Energy Discharges 3 | . . . . . . 3 . . . . Data Loss (minor) 3 | . . . 1 . 1 1 . . . . Data Loss (major) 2 | . . . 1 . . 1 . . . . Alerts 1 | . . . . . 1 . . . . . Weapon Failures 1 | . . . 1 . . . . . . . Overload Shots . | . . . . . . . . . . . Overflow Damage . | . . . . . . . . . . . Projectiles . | . . . . . . . . . . . Explosions . | . . . . . . . . . . . Melee . | . . . . . . . . . . . Knockbacks 5 | . . 2 1 2 . . . . . . Impact . | . . . . . . . . . . . Kinetic 5 | . . 2 1 2 . . . . . . Secondary . | . . . . . . . . . . . Self-Inflicted Damage 17 | . . . 14 . . . . . . 3 Shots . | . . . . . . . . . . . Rammed 3 | . . . . . . . . . 1 2 Targets Rammed 11 | . . . . 1 . 6 . . 2 2 Kicked 8 | . . . . 1 . 6 . . 1 . Crushed . | . . . . . . . . . . . Highest Temperature 261 | . 15 38 . 42 261 79 . . 189 39 Average Temperature 47 | . 8 17 . 33 136 30 . . 69 21 Received Heat Transfer 1262 | . 72 74 60 84 . 99 . . 747 126 Siege Activations . | . . . . . . . . . . . Robots Corrupted . | . . . . . . . . . . . Combat Hostiles . | . . . . . . . . . . . Parts Fried . | . . . . . . . . . . . Impact Corruptions . | . . . . . . . . . . . Robots Melted 1 | . . . . . . 1 . . . . Combat Hostiles 1 | . . . . . . 1 . . . . Parts Melted 3 | . 3 . . . . . . . . . Heat Transferred 3737 | . 962 . . 259 . 407 . . 1887 222 Parts Sabotaged . | . . . . . . . . . . . Parts Stolen . | . . . . . . . . . . . Parts Stripped . | . . . . . . . . . . . Power Chain Reactions . | . . . . . . . . . . . Missiles Intercepted . | . . . . . . . . . . . Alert | -11 -10 -10 -9 -9 -9 -8 -8 -8 -8 -8 ------- Run | Scr Mat Min Mat Min Exi Min Mat Gar Mat Gar Peak Influence 265 | . 105 119 197 170 . 127 . . 265 235 Initial 165 | . . 40 . 76 . . . . . 165 Average 61 | . 35 48 73 97 . 45 . . 136 195 Maximum Alert Level 1 | . . . . . . . . . 1 1 Low Security (%) 95 | 100 100 100 100 100 . 100 100 100 66 45 Level 1 4 | . . . . . . . . . 33 54 Level 2 . | . . . . . . . . . . . Level 3 . | . . . . . . . . . . . Level 4 . | . . . . . . . . . . . Level 5 . | . . . . . . . . . . . High Security . | . . . . . . . . . . . Max Security . | . . . . . . . . . . . Squads Dispatched 9 | . 3 1 1 . . . . . 4 . Investigation 5 | . 3 1 1 . . . . . . . Extermination . | . . . . . . . . . . . Reinforcement 2 | . . . . . . . . . 2 . Assault . | . . . . . . . . . . . Garrison 2 | . . . . . . . . . 2 . Intercept . | . . . . . . . . . . . Searches Triggered . | . . . . . . . . . . . Construction Impeded . | . . . . . . . . . . . Haulers Reinforced . | . . . . . . . . . . . Active Scanning Responses . | . . . . . . . . . . . Cargo Convoy Interrupts . | . . . . . . . . . . . Stealth | -11 -10 -10 -9 -9 -9 -8 -8 -8 -8 -8 --------- Run | Scr Mat Min Mat Min Exi Min Mat Gar Mat Gar Distress Signals 1 | . . . . . . . . . 1 . Communications Jammed . | . . . . . . . . . . . Distress Signals . | . . . . . . . . . . . Times Spotted 89 | . 12 15 7 6 . 8 . . 34 7 Peak Tracking Total 8 | . 3 6 4 3 . 4 . . 8 6 Tactical Retreats 4 | . 1 . 1 . . . . . 2 . Traps | -11 -10 -10 -9 -9 -9 -8 -8 -8 -8 -8 ------- Run | Scr Mat Min Mat Min Exi Min Mat Gar Mat Gar Traps Triggered . | . . . . . . . . . . . Indirectly . | . . . . . . . . . . . Trap Hack Attempts . | . . . . . . . . . . . Triggered . | . . . . . . . . . . . Disarmed . | . . . . . . . . . . . Reprogrammed 10 | . 4 . 6 . . . . . . . Reused 4 | . 1 . 3 . . . . . . . Traps Extracted . | . . . . . . . . . . . Installed . | . . . . . . . . . . . Triggered 4 | . 1 . 3 . . . . . . . Machines | -11 -10 -10 -9 -9 -9 -8 -8 -8 -8 -8 ---------- Run | Scr Mat Min Mat Min Exi Min Mat Gar Mat Gar Machines Disabled 6 | . 1 1 4 . . . . . . . Max in Single Turn 1 | . 1 1 1 . . . . . . . Machines Sabotaged . | . . . . . . . . . . . Garrisons Compromised . | . . . . . . . . . . . Overloaded Fab Kills . | . . . . . . . . . . . Hacking | -11 -10 -10 -9 -9 -9 -8 -8 -8 -8 -8 --------- Run | Scr Mat Min Mat Min Exi Min Mat Gar Mat Gar Machines Accessed 9 | . 4 1 1 . . . 1 . 2 . Terminals 7 | . 4 1 1 . . . . . 1 . Fabricators . | . . . . . . . . . . . Repair Stations . | . . . . . . . . . . . Recycling Units . | . . . . . . . . . . . Scanalyzers . | . . . . . . . . . . . Garrison Access 2 | . . . . . . . 1 . 1 . Total Hacks 25 | . 14 4 3 . . . 1 . 3 . Successful 9 | . 4 1 2 . . . 1 . 1 . Failed 16 | . 10 3 1 . . . . . 2 . Catastrophic 1 | . 1 . . . . . . . . . Database Lockouts . | . . . . . . . . . . . Manual 7 | . . 7 . . . . . . . . Terminals 23 | . 14 4 3 . . . . . 2 . Fabricators . | . . . . . . . . . . . Repair Stations . | . . . . . . . . . . . Recycling Units . | . . . . . . . . . . . Scanalyzers . | . . . . . . . . . . . Garrison Access 2 | . . . . . . . 1 . 1 . Terminal Hacks 7 | . 4 1 2 . . . . . . . Robot Analysis 1 | . . 1 . . . . . . . . Prototype ID Bank 1 | . 1 . . . . . . . . . Unreport Threat 2 | . 2 . . . . . . . . . Reprogram Traps 3 | . 1 . 2 . . . . . . . Fabricator Hacks . | . . . . . . . . . . . Repair Station Hacks . | . . . . . . . . . . . Recycling Unit Hacks . | . . . . . . . . . . . Scanalyzer . | . . . . . . . . . . . Garrison Access Hacks 2 | . . . . . . . 1 . 1 . Unlock Access 2 | . . . . . . . 1 . 1 . Unauthorized Hacks . | . . . . . . . . . . . Terminals . | . . . . . . . . . . . Fabricators . | . . . . . . . . . . . Repair Stations . | . . . . . . . . . . . Recycling Units . | . . . . . . . . . . . Scanalyzers . | . . . . . . . . . . . Garrison Access . | . . . . . . . . . . . Data Cores Recovered . | . . . . . . . . . . . Used . | . . . . . . . . . . . Hacking Detections 7 | . 4 1 1 . . . . . 1 . Full Trace Events 6 | . 3 1 1 . . . . . 1 . Feedback Events . | . . . . . . . . . . . Feedback Blocked . | . . . . . . . . . . . Robot Schematics Acquired . | . . . . . . . . . . . Robots Built . | . . . . . . . . . . . Authchips . | . . . . . . . . . . . Time . | . . . . . . . . . . . Total Robot Build Rating . | . . . . . . . . . . . Part Schematics Acquired . | . . . . . . . . . . . Parts Built . | . . . . . . . . . . . Authchips . | . . . . . . . . . . . Time . | . . . . . . . . . . . Total Part Build Rating . | . . . . . . . . . . . Parts Repaired . | . . . . . . . . . . . Time . | . . . . . . . . . . . Parts Recycled . | . . . . . . . . . . . Recycled Matter . | . . . . . . . . . . . Retrieved Matter . | . . . . . . . . . . . Retrieved Components . | . . . . . . . . . . . Parts Scanalyzed . | . . . . . . . . . . . Part Schematics Acquired . | . . . . . . . . . . . Parts Damaged . | . . . . . . . . . . . Bothacking | -11 -10 -10 -9 -9 -9 -8 -8 -8 -8 -8 ------------ Run | Scr Mat Min Mat Min Exi Min Mat Gar Mat Gar Used RIF Installer . | . . . . . . . . . . . Robots Hacked 6 | . 1 . . 1 . 1 . . 3 . Non-combat . | . . . . . . . . . . . Combat 6 | . 1 . . 1 . 1 . . 3 . Robot Hacks Applied 9 | . 1 . . 1 . 1 . . 6 . find_shortcuts 6 | . 1 . . 1 . 1 . . 3 . find_garrison 3 | . . . . . . . . . 3 . Relay Couplers Released . | . . . . . . . . . . . Fabnet Peak Effective % . | . . . . . . . . . . . Robots Rewired . | . . . . . . . . . . . Allies Hacked . | . . . . . . . . . . . Hacks Repelled . | . . . . . . . . . . . Allies | -11 -10 -10 -9 -9 -9 -8 -8 -8 -8 -8 -------- Run | Scr Mat Min Mat Min Exi Min Mat Gar Mat Gar Total Allies 3 | . . . . 3 . . . . . . Largest Group 3 | . . . . 3 3 3 2 2 . . Highest-Rated Group 40 | . . . . 40 40 40 32 32 . . Highest-Rated Ally 16 | . . . . 16 16 16 16 16 . . Total Orders . | . . . . . . . . . . . Ally Attacks 28 | . . . . 5 . 20 . 3 . . Total Damage 284 | . . . . 44 . 224 . 16 . . Kills 6 | . . . . 2 . 4 . . . . Allies Corrupted . | . . . . . . . . . . . Allies Melted . | . . . . . . . . . . . Intel | -11 -10 -10 -9 -9 -9 -8 -8 -8 -8 -8 ------- Run | Scr Mat Min Mat Min Exi Min Mat Gar Mat Gar Robot Analysis Total 5 | . 2 2 . . . 1 . . . . Derelict Logs Recovered 1 | . . 1 . . . . . . . . Drone Launches . | . . . . . . . . . . . Drone Recoveries . | . . . . . . . . . . . Exploration | -11 -10 -10 -9 -9 -9 -8 -8 -8 -8 -8 ------------- Run | Scr Mat Min Mat Min Exi Min Mat Gar Mat Gar Turns Passed 3704 | 9 586 1040 205 305 229 739 31 133 306 121 Spaces Moved 2586 | 18 449 667 82 230 188 586 23 111 140 92 Core 105 | 18 58 2 . 3 . 1 . . 12 11 Treads . | . . . . . . . . . . . Legs 2311 | . 221 665 82 227 188 585 23 111 128 81 Wheels 170 | . 170 . . . . . . . . . Hover . | . . . . . . . . . . . Flight . | . . . . . . . . . . . Fastest Speed 50 | 50 50 50 120 50 120 50 120 120 100 50 Average Speed 114 | 50 95 119 120 119 120 119 120 120 120 111 Slowest Speed 150 | 50 120 120 120 120 120 120 120 120 150 120 Overloaded Moves . | . . . . . . . . . . . Propulsion Burnouts . | . . . . . . . . . . . Robots Hopped . | . . . . . . . . . . . Cave-ins Triggered . | . . . . . . . . . . . Exploration Rate (%) 42 | 3 50 97 18 54 59 93 4 28 25 36 Regions Visited 10 Branch Regions 4 Pre-discovered Areas 1 | . . 1 . . . . . . . . Known Exits Taken 2 | . . . . . . . 1 . 1 . Unknown Exits Taken 7 | 1 1 1 1 1 1 1 . . . . Scrap Searched 3 | . . 1 . . . 2 . . . . Spaces Dug . | . . . . . . . . . . . Terrain Destroyed 28 | . . 23 4 1 . . . . . . Melee . | . . . . . . . . . . . Projectile 28 | . . 23 4 1 . . . . . . AOE . | . . . . . . . . . . . Terrain Rammed 1 | . . . 1 . . . . . . . Walls Destroyed 1 | . . . 1 . . . . . . . Machines Disabled . | . . . . . . . . . . . Actions | -11 -10 -10 -9 -9 -9 -8 -8 -8 -8 -8 --------- Run | Scr Mat Min Mat Min Exi Min Mat Gar Mat Gar Total 3135 | 17 571 876 167 248 191 610 26 111 216 102 Wait 367 | . 89 178 64 5 4 8 4 1 14 . Move 2577 | 17 448 666 81 229 187 585 22 110 140 92 Hop . | . . . . . . . . . . . Pick Up . | . . . . . . . . . . . Fast Attach . | . . . . . . . . . . . Attach . | . . . . . . . . . . . Detach . | . . . . . . . . . . . Swap . | . . . . . . . . . . . Drop . | . . . . . . . . . . . Fire 179 | . 34 32 21 13 . 11 . . 60 8 Melee . | . . . . . . . . . . . Ram 4 | . . . 1 . . . . . 1 2 Kick 8 | . . . . 1 . 6 . . 1 . Crush . | . . . . . . . . . . . Escape Stasis . | . . . . . . . . . . . Rewire . | . . . . . . . . . . . Trap . | . . . . . . . . . . . Miscellaneous . | . . . . . . . . . . . Route ------- -11/Scrapyard -10/Materials (discovered 3 exits: *Mat x2 / *Min) -10/Mines (discovered 2 exits: *Mat x2) -9/Materials -9/Mines (discovered 2 exits: *Mat / [*Exi]) -9/Exiles -8/Mines (discovered 2 exits: *Mat x2) -8/Materials -8/Garrison -8/Materials -8/Garrison History --------- Turn | Location | Event 4 | -11/Scrapyard | Discovered new exit (range 12) 10 | -11/Scrapyard | Entered Materials 15 | -10/Materials | Discovered new exit (range 16) 47 | -10/Materials | Discovered new exit (range 13) 522 | -10/Materials | Discovered new exit (range 3) 596 | -10/Materials | Entered Mines 602 | -10/Mines | Assembled infested the area 607 | -10/Mines | Assisted by a Guerilla fighting off Assembled 693 | -10/Mines | Core integrity fell below 50% 736 | -10/Mines | Destroyed 7 combat bots 736 | -10/Mines | Discovered new exit (range 15) 957 | -10/Mines | Discovered new exit (range 11) 1064 | -10/Mines | Learned location of Zion (-7) 1636 | -10/Mines | Entered Materials 1829 | -9/Materials | Discovered new exit (range 8) 1841 | -9/Materials | Entered Mines 1857 | -9/Mines | Discovered new exit (range 9) 1976 | -9/Mines | Assisted by bots powering up and referring to "LRC-V3" 2136 | -9/Mines | Deemed a non-threat by the Exiles lab entrance 2138 | -9/Mines | Discovered new exit (range 5) 2146 | -9/Mines | Entered Exiles 2146 | -9/Exiles | Found Exiles lab abandoned 2146 | -9/Exiles | Accompanied by 3 allies 2358 | -9/Exiles | Discovered new exit (range 14) 2375 | -9/Exiles | Entered Mines 2375 | -8/Mines | Accompanied by 3 allies 2384 | -8/Mines | Discovered new exit (range 8) 2747 | -8/Mines | Discovered new exit (range 15) 3114 | -8/Mines | Entered Materials 3114 | -8/Materials | Accompanied by 2 allies 3141 | -8/Materials | Identified exit to Garrison 3145 | -8/Materials | Entered Garrison 3145 | -8/Garrison | Accompanied by 2 allies 3176 | -8/Garrison | Triggered checkpoint 3228 | -8/Garrison | Triggered checkpoint 3265 | -8/Garrison | Discovered new exit (range 12) 3278 | -8/Garrison | Entered Materials 3458 | -8/Materials | Garrison activated, responded to threat 3537 | -8/Materials | Core integrity fell below 50% 3563 | -8/Materials | Lost 7 parts (1p4n2w) 3584 | -8/Materials | Identified exit to Garrison 3584 | -8/Materials | Entered Garrison 3604 | -8/Garrison | Triggered checkpoint 3661 | -8/Garrison | Core integrity fell below 20% 3680 | -8/Garrison | Triggered checkpoint 3698 | -8/Garrison | Triggered checkpoint 3705 | -8/Garrison | Destroyed by C-17 Slicer with Blade Saw Last Messages --------------- 03566_ Released control of G-47 Trooper. 03566_ Took control of G-47 Trooper. 03566_ G-47 Trooper suffers critical hit (Burn). 03575_ M-13 Machinist repairs G-47 Trooper. 03577_ M-13 Machinist repairs Aluminum Leg. 03584_ Connecting with Garrison Access... >>Unlock Access door unlocked. 03584_ EXIT=UNLOCKED: GARRISON LOCATION=GARRISON GOAL=ESCAPE 03604_ Beams of light sweep through the air. An alarm sounds. 03644_ Y-45 Defender destroyed. 03654_ Particle Gun destroyed. 03680_ Beams of light sweep through the air. An alarm sounds. 03684_ Lgt. Nuclear Core destroyed. 03693_ Aluminum Leg destroyed. 03698_ Beams of light sweep through the air. An alarm sounds. 03699_ Knocked back. 03702_ Slammed into C-17 Slicer. Map ----- +----------------------------------------------------+ | ?????????????????????????????????????????????????? | | ?????????????????????????????????????????????????? | | ?????????????????????????????????????????????????? | | ?????????????????????????????????????????????????? | | ?????????????????????????????????????????????????? | | ?????????????????????????????????????????????????? | | ?????????????????????????????????????????????????? | | ?????????????????????????????????????????????????? | | ?????????????????????????????????????????????????? | | ?????????????????????????????????????????????????? | | ?????????????????????????????????????????????????? | | ?????????????????????????????????????????????????? | | ??????????????????????????? #????????????????????? | | ??????????????????????????? #????????????????????? | | #######???????????????????? #????????????????????? | | #???????????????????? #????????????????????? | | #???????????????????? #????????????????????? | | #### #???????????????????? #????????????????????? | | ???# #?????????????????### #????????????????????? | | ???# #?????????????????# ?????????????????????? | | ???# #?????????????????+ ?????????????????????? | | ???# #?????????????????# #?????????????????????? | | ???# #?????????????????# #?????????????????????? | | ???# #?????????????????# #?????????????????????? | | ??## ##" ######??????# #?????????????????????? | | ??# ########g #?????????????????????? | | ??# c#?????????????????????? | | ??# ^ c%#?????????????????????? | | ??# ## ## #########%########??????????????? | | ### ## ## #???????# #!!!!!!#??????????????? | | # "???????# #??????????????? | | # "???????##########??????????????? | | # "???????????????????????????????? | | # "???????????????????????????????? | | ### ## ## #???????????????????????????????? | | ??# ## ## #???????????????????????????????? | | ??# ??????????????????????????????? | | ??# ?????????????????????????????? | | ??# ####????????????????????????????? | | ??# ##""""######???????????????????????????????? | | ??# ???????????????????????????????????????????? | | ??# ???????????????????????????????????????????? | | ??# ???????????????????????????????????????????? | | ??# ???????????????????????????????????????????? | | ??# ???????????????????????????????????????????? | | ???? ????????????????????????????????????????????? | | ?????????????????????????????????????????????????? | | ?????????????????????????????????????????????????? | | ?????????????????????????????????????????????????? | | ?????????????????????????????????????????????????? | +----------------------------------------------------+ Best States ------------- Heat Dissipation 45 Energy Generation 23 Energy Capacity 260 Matter Stores 200 Matter Capacity 200 Sight Range 16 Terrain Scan Density 10 Resistance: KI 25 Phase Shifting 5 Evasion (%) 60 Targeting Accuracy 5 Armor Integrity Analysis 30 Item Schematics ----------------- None Robot Schematics ------------------ None Fabricated ------------ Nothing Alien Tech Used ----------------- None Achievements -------------- None Challenges ------------ None Polymind | -11 -10 -10 -9 -9 -9 -8 -8 -8 -8 -8 ---------- Run | Scr Mat Min Mat Min Exi Min Mat Gar Mat Gar Hosts 8 | . 2 1 . 1 . 1 . . 3 . Combat Hostiles 6 | . 1 . . 1 . 1 . . 3 . Allies 1 | . . 1 . . . . . . . . Unique Host Classes 3 | . 2 1 . . . . . . . . Average Host Suspicion 68 | . 75 53 80 93 . 98 4 38 78 69 Unsuspicious Activity 279 | . 59 220 . . . . . . . . Returns to Shadow 1 | . . 1 . . . . . . . . Fuzzy Dispatches . | . . . . . . . . . . . Protomatter Created 296 | . 45 101 5 39 . 30 . 11 65 . Used 216 | . 35 16 . 30 . 45 . . 90 . Decayed 48 | . . 27 . 21 . . . . . . Highest Spend 45 | . 30 16 . 30 . 45 . . 30 . Top 5 Hosts by Kills: JQ-C8X(h) (-10/Mines: 16) G-47 Trooper (-10/Materials: 10) G-47 Trooper (-8/Materials: 4) G-47 Trooper (-9/Mines: 3) G-50 Soldier (-8/Mines: 3) Game ------ Seed NullAutogunDoomcannon Manual? 0 Play Time 00:27:03 Cumulative 80.0 hours Start 2023.01.04 @ 12:30:29 End 2023.01.04 @ 13:00:08 Sessions 1 Manual Loads 0 Difficulty Rogue Special Mode Winter2022/Polymind Game No. 60 Rogue 60 Adventurer 0 Explorer 0 Win Type - Total 0 Types 0/0/0/0/0/0/0/0/0 Lore% 38 Gallery% 56 Achievement% 47 Wizard Run 0 Options --------- ASCII 0 Keyboard 1 Movement Numpad Keybinds 0 Fullscreen 1 Font 18/SmallcapsGlow Map View 76x50 Tactical HUD 1 Map Filters NONE Filters NONE Steam 1 RUN: 97d29423-2e80-48f5-8c42-975718756072